fUSD/lending_fUSD_20260521
["ID","MTS","AMOUNT","RATE_DAILY","PERIOD"]
[422728304,1779327050000,-150.0,0.00014587,2]
[422728306,1779327050000,-150.0,0.0001459,2]
[422728317,1779327050000,-150.0,0.0001464,2]
[422728321,1779327050000,-182.2043684,0.00014658,2]
[422728324,1779327050000,-150.0,0.00014675,2]
[422728320,1779327050000,-150.0,0.00014647,2]
[422728326,1779327050000,-500.0,0.00014677,2]
[422728332,1779327050000,-1220.54154981,0.000147,2]
[422728328,1779327050000,-500.0,0.00014677,2]
[422728335,1779327050000,-200.0,0.000147,5]
[422728330,1779327050000,-150.0,0.00014687,2]
[422728337,1779327050000,-150.0,0.000147,2]
[422728341,1779327050000,-18850.04164589,0.00014703,2]
[422728339,1779327050000,-137688.91930612,0.00014703,2]
[422728293,1779327050000,-9999.99,0.00014504,2]
[422728295,1779327050000,-150.0,0.00014525,2]
[422728300,1779327050000,-150.0,0.00014562,2]
[422728290,1779327050000,-150.99,0.00014504,2]
[422728269,1779327050000,-114.58507436,0.00014364,2]
[422728268,1779327050000,-150.0,0.00014336,2]
[422728270,1779327050000,-35.41492564,0.00014364,2]
[422728266,1779327050000,-150.0,0.00014305,2]
[422728289,1779327050000,-9999.99,0.00014504,2]
[422728271,1779327050000,-868.0,0.00014383,2]
[422728272,1779327050000,-166.66,0.00014384,2]
[422728274,1779327050000,-150.0,0.00014393,2]
[422728284,1779327050000,-500.0,0.00014467,2]
[422728276,1779327050000,-163.232369,0.00014406,2]
[422728273,1779327050000,-150.0,0.00014387,2]
[422728280,1779327050000,-150.0,0.00014441,2]
[422728264,1779327050000,-150.0,0.00014295,2]
[422728279,1779327050000,-150.0,0.00014421,2]
[422728277,1779327050000,-150.0,0.0001441,2]
[422728292,1779327050000,-299.99,0.00014504,2]
[422728291,1779327050000,-2654.91,0.00014504,2]
[422728288,1779327050000,-1087.76,0.00014504,2]
[422728287,1779327050000,-200.0,0.000145,5]
[422728275,1779327050000,-1000.0,0.000144,5]
[422728285,1779327050000,-150.0,0.00014477,2]
[422728281,1779327050000,-150.0,0.00014449,2]
[422728282,1779327050000,-1420.02444348,0.00014462,2]
[422728278,1779327050000,-150.0,0.0001441,2]
[422728283,1779327050000,-327.03051538,0.00014462,2]
[422728286,1779327050000,-150.0,0.00014487,2]
[422728360,1779327051000,-24738.08695369,0.00014703,2]
[422728344,1779327051000,-65166.45,0.00014703,2]
[422728351,1779327051000,-269.68045196,0.00014703,2]
[422728348,1779327051000,-8598.11663507,0.00014703,2]
[422728353,1779327051000,-39900.95365898,0.00014703,2]
[422728367,1779327051000,-1110.9295,0.00014703,2]
[422728364,1779327051000,-494.61771879,0.00014703,2]
[422728346,1779327051000,-5909.66363843,0.00014703,2]
[422728369,1779327051000,-1151.30067516,0.00014703,2]
[422728382,1779327052000,151.31003987,6.91e-05,7]
[422728383,1779327077000,166.51,0.00013775,30]
[422728385,1779327374000,300.0,9.9e-05,3]
[422728386,1779327376000,600.0,0.0001,3]
[422728387,1779327455000,888.0,0.00028767,120]
[422728388,1779327460000,413.4523,0.00028767,120]
[422728389,1779327463000,888.0,0.00028767,120]
[422728390,1779327477000,490.85,0.00028767,120]
[422728406,1779327932000,152.0,6.911e-05,7]
[422728407,1779327933000,152.0,6.911e-05,7]
[422728414,1779328036000,300.0,9.9e-05,3]
[422728415,1779328038000,600.0,0.0001,3]
[422728416,1779328055000,152.0,6.91e-05,7]
[422728417,1779328085000,1000.0,0.00021,120]
[422728420,1779328141000,1000.0,0.00028766,120]
[422728422,1779328205000,198.0,0.00026138,120]
[422728424,1779328231000,-173.57478624,9.808e-05,2]
[422728427,1779328231000,-1258.531,9.808e-05,2]
[422728426,1779328231000,-78.64381546,9.808e-05,2]
[422728428,1779328231000,-160.0,9.857e-05,2]
[422728434,1779328231000,-250.0,0.00010788,2]
[422728429,1779328231000,-208.63953863,9.857e-05,2]
[422728423,1779328231000,-169.74844694,9.808e-05,2]
[422728432,1779328231000,-285.0,0.00010006,2]
[422728437,1779328231000,-300.0,0.00011098,2]
[422728435,1779328231000,-255.0,0.00011006,2]
[422728436,1779328231000,-300.0,0.00011098,2]
[422728430,1779328231000,-159.44426831,9.99e-05,2]
[422728431,1779328231000,-150.0,0.00010006,2]
[422728433,1779328231000,-215.20247212,0.00010124,2]
[422728499,1779328232000,-500.0,0.00013698,2]
[422728484,1779328232000,-736.0,0.00013318,2]
[422728476,1779328232000,-150.0,0.00012964,2]
[422728483,1779328232000,-1579.91151071,0.00013261,2]
[422728480,1779328232000,-687.46,0.0001316,2]
[422728470,1779328232000,-150.0,0.00012822,2]
[422728474,1779328232000,-687.46,0.00012854,2]
[422728494,1779328232000,-150.0,0.00013534,2]
[422728488,1779328232000,-2351.0,0.00013429,2]
[422728482,1779328232000,-150.0,0.00013249,2]
[422728487,1779328232000,-587.0,0.00013399,2]
[422728498,1779328232000,-500.0,0.00013698,2]
[422728478,1779328232000,-150.0,0.00013107,2]
[422728485,1779328232000,-500.0,0.00013356,2]
[422728493,1779328232000,-150.0,0.00013534,2]
[422728497,1779328232000,-150.0,0.00013677,2]
[422728486,1779328232000,-150.0,0.00013392,2]
[422728495,1779328232000,-22389.27,0.00013608,2]
[422728496,1779328232000,-2000.0,0.00013668,2]
[422728492,1779328232000,-150.0,0.00013534,2]
[422728490,1779328232000,-150.0,0.00013534,2]
[422728501,1779328232000,-500.0,0.00013698,2]
[422728509,1779328232000,-500.88881958,0.00013698,2]
[422728491,1779328232000,-150.0,0.00013534,2]
[422728489,1779328232000,-687.46,0.00013466,2]
[422728457,1779328232000,-181.79,0.00012608,2]
[422728468,1779328232000,-150.0,0.00012822,2]
[422728443,1779328232000,-1579.91151071,0.00011099,2]
[422728446,1779328232000,-487.89,0.00012073,2]
[422728442,1779328232000,-1579.91151071,0.00011099,2]
[422728451,1779328232000,-420.0,0.00012194,2]
[422728448,1779328232000,-1147.71,0.00012141,2]
[422728452,1779328232000,-1680.0,0.00012208,2]
[422728445,1779328232000,-1831.19039369,0.000119,2]
[422728453,1779328232000,-687.46,0.00012242,2]
[422728447,1779328232000,-433.0,0.00012107,2]
[422728439,1779328232000,-1200.0,0.00011098,2]
[422728438,1779328232000,-300.0,0.00011098,2]
[422728440,1779328232000,-166.87114614,0.00011099,2]
[422728449,1779328232000,-2000.0,0.00012149,2]
[422728444,1779328232000,-1579.91151071,0.00011622,2]
[422728441,1779328232000,-1579.91151073,0.00011099,2]
[422728450,1779328232000,-1579.91151071,0.00012168,2]
[422728508,1779328232000,-509.05103781,0.00013698,2]
[422728456,1779328232000,-687.46,0.00012548,2]
[422728459,1779328232000,-150.0,0.00012822,2]
[422728460,1779328232000,-150.0,0.00012822,2]
[422728461,1779328232000,-150.54123673,0.00012822,2]
[422728454,1779328232000,-160.55,0.00012332,2]
[422728458,1779328232000,-1579.91151071,0.00012715,2]
[422728472,1779328232000,-150.0,0.00012822,2]
[422728455,1779328232000,-166.87114614,0.00012445,2]
[422728510,1779328232000,-500.0,0.00013698,2]
[422728504,1779328232000,-3238.49,0.00013698,2]
[422728531,1779328232000,-500.0,0.00014024,2]
[422728529,1779328232000,-166.66,0.00013973,2]
[422728535,1779328232000,-1226.825,0.00014056,2]
[422728536,1779328232000,-280.273,0.00014056,2]
[422728555,1779328232000,-760.53387813,0.0001425,2]
[422728547,1779328232000,-153.60079131,0.00014247,2]
[422728551,1779328232000,-1198.43,0.00014249,2]
[422728539,1779328232000,-450.91438764,0.00014063,2]
[422728540,1779328232000,-500.0,0.00014063,2]
[422728538,1779328232000,-1102.197,0.00014056,2]
[422728530,1779328232000,-250.0,0.00014,2]
[422728544,1779328232000,-166.66,0.00014247,2]
[422728543,1779328232000,-166.66,0.0001411,2]
[422728552,1779328232000,-1198.43,0.00014249,2]
[422728541,1779328232000,-3238.49,0.00014063,2]
[422728553,1779328232000,-70543.10106705,0.0001425,2]
[422728549,1779328232000,-154.22298886,0.00014247,2]
[422728537,1779328232000,-200.0,0.00014056,2]
[422728542,1779328232000,-150.0,0.00014104,2]
[422728548,1779328232000,-191.96344514,0.00014247,2]
[422728545,1779328232000,-153.47973258,0.00014247,2]
[422728550,1779328232000,-305.53854586,0.00014249,2]
[422728554,1779328232000,-740.01793856,0.0001425,2]
[422728528,1779328232000,-150.0,0.00013962,2]
[422728546,1779328232000,-155.15755899,0.00014247,2]
[422728532,1779328232000,-626.133,0.00014056,2]
[422728503,1779328232000,-500.0,0.00013698,2]
[422728500,1779328232000,-500.0,0.00013698,2]
[422728527,1779328232000,-167.59,0.00013901,2]
[422728506,1779328232000,-3238.49,0.00013698,2]
[422728507,1779328232000,-500.0,0.00013698,2]
[422728511,1779328232000,-506.60979522,0.00013698,2]
[422728512,1779328232000,-1198.43,0.00013698,2]
[422728513,1779328232000,-1198.43,0.00013698,2]
[422728515,1779328232000,-1198.43,0.00013698,2]
[422728516,1779328232000,-1198.43,0.00013698,2]
[422728514,1779328232000,-1198.43,0.00013698,2]
[422728517,1779328232000,-1198.43,0.00013698,2]
[422728505,1779328232000,-3238.49,0.00013698,2]
[422728521,1779328232000,-166.66,0.00013699,2]
[422728523,1779328232000,-1579.91151071,0.00013807,2]
[422728524,1779328232000,-150.0,0.00013819,2]
[422728534,1779328232000,-927.0,0.00014056,2]
[422728526,1779328232000,-900.0,0.000139,5]
[422728533,1779328232000,-1356.332,0.00014056,2]
[422728502,1779328232000,-500.0,0.00013698,2]
[422728519,1779328232000,-455.98378796,0.00013698,2]
[422728518,1779328232000,-500.0,0.00013698,2]
[422728520,1779328232000,-200.0,0.00013699,2]
[422728525,1779328232000,-166.66,0.00013836,2]
[422728522,1779328232000,-568.02,0.00013785,2]
[422728565,1779328238000,-301.57984779,9.908e-05,2]
[422728564,1779328238000,-781546.81443745,9.908e-05,2]
[422728567,1779328238000,-534.124359,9.908e-05,2]
[422728568,1779328238000,-7840.07796887,9.908e-05,2]
[422728566,1779328238000,-395.24465621,9.908e-05,2]
[422728577,1779328240000,-23921.5,9.908e-05,2]
[422728579,1779328240000,-930.15108612,9.908e-05,2]
[422728578,1779328240000,-1843.04549802,9.908e-05,2]
[422728580,1779328240000,-2365.275,9.908e-05,2]
[422728581,1779328240000,-2511.0,9.908e-05,2]
[422728586,1779328240000,-18125.96489814,9.908e-05,2]
[422728587,1779328240000,-317.893275,9.908e-05,2]
[422728584,1779328240000,-367.6956939,9.908e-05,2]
[422728585,1779328240000,-843.821,9.908e-05,2]
[422728582,1779328240000,-1844.09,9.908e-05,2]
[422728583,1779328240000,-182433.30331261,9.908e-05,2]
[422728671,1779328243000,-1118.29677384,9.908e-05,2]
[422728672,1779328243000,-108362.18785299,9.908e-05,2]
[422728669,1779328243000,-461840.27078912,9.908e-05,2]
[422728670,1779328243000,-329.91,9.908e-05,2]
[422728717,1779328246000,-1558.86743648,9.908e-05,2]
[422728718,1779328246000,-335.819307,9.908e-05,2]
[422728741,1779328698000,1000.0,0.00021,120]
[422728742,1779328806000,162.0,0.00020249,120]
[422728743,1779328807000,162.0,0.00021262,120]
[422728744,1779328809000,162.0,0.00022325,120]
[422728745,1779328810000,162.0,0.00023441,120]
[422728746,1779328811000,162.0,0.00024613,120]
[422728747,1779328813000,162.0,0.00025844,120]
[422728748,1779328825000,152.0,6.91e-05,7]
[422728749,1779328831000,168.0,0.00020163,120]
[422728750,1779328833000,168.0,0.00021171,120]
[422728751,1779328834000,168.0,0.0002223,120]
[422728752,1779328835000,168.0,0.00023341,120]
[422728753,1779328837000,168.0,0.00024508,120]
[422728754,1779328838000,168.0,0.00025734,120]
[422728756,1779329340000,1000.0,0.00028765,120]
[422728789,1779329432000,-507.87749721,0.00012086,2]
[422728775,1779329432000,-348.61138709,0.00011099,2]
[422728783,1779329432000,-348.61138709,0.00011524,2]
[422728785,1779329432000,-2351.0,0.000119,2]
[422728787,1779329432000,-433.0,0.00012021,2]
[422728800,1779329432000,-931.34,0.00012588,2]
[422728808,1779329432000,-2000.0,0.00012644,2]
[422728791,1779329432000,-348.61138709,0.00012087,2]
[422728804,1779329432000,-473.35,0.00012619,2]
[422728806,1779329432000,-259.78,0.00012637,2]
[422728793,1779329432000,-1016.7,0.00012452,2]
[422728798,1779329432000,-887.32,0.00012564,2]
[422728795,1779329432000,-172.87,0.00012537,2]
[422728777,1779329432000,-507.87749722,0.00011099,2]
[422728802,1779329432000,-150.0,0.0001259,2]
[422728776,1779329432000,-348.61138709,0.00011099,2]
[422728769,1779329432000,-169.7357805,0.0001,2]
[422728779,1779329432000,-507.87749721,0.00011099,2]
[422728760,1779329432000,-1200.0,9.835e-05,2]
[422728762,1779329432000,-699.20288059,9.836e-05,2]
[422728761,1779329432000,-250.04770829,9.836e-05,2]
[422728763,1779329432000,-2033.70262742,9.836e-05,2]
[422728764,1779329432000,-294996.9247837,9.836e-05,2]
[422728765,1779329432000,-150.0,9.935e-05,2]
[422728767,1779329432000,-6646.1840845,9.936e-05,2]
[422728768,1779329432000,-105627.2745648,9.936e-05,2]
[422728770,1779329432000,-215.20247212,0.00010116,2]
[422728766,1779329432000,-180.40237189,9.935e-05,2]
[422728810,1779329432000,-507.87749721,0.00012649,2]
[422728772,1779329432000,-1680.0,0.00010818,2]
[422728771,1779329432000,-208.63953863,0.00010123,2]
[422728774,1779329432000,-348.61138712,0.00011099,2]
[422728778,1779329432000,-507.87749721,0.00011099,2]
[422728781,1779329432000,-507.87749721,0.00011523,2]
[422728812,1779329432000,-348.61138709,0.00012649,2]
[422728773,1779329432000,-255.0,0.00010929,2]
[422728828,1779329432000,-1603.25651338,0.0001307,2]
[422728878,1779329432000,-507.87749721,0.00013774,2]
[422728879,1779329432000,-348.61138709,0.00013775,2]
[422728882,1779329432000,-166.66,0.00013836,2]
[422728892,1779329432000,-250.0,0.00014,2]
[422728894,1779329432000,-2500.0,0.0001405,2]
[422728888,1779329432000,-1374.92,0.00013971,2]
[422728890,1779329432000,-166.66,0.00013973,2]
[422728886,1779329432000,-500.0,0.00013941,2]
[422728884,1779329432000,-200.0,0.000139,5]
[422728900,1779329432000,-927.0,0.00014056,2]
[422728896,1779329432000,-503.44025348,0.00014056,2]
[422728906,1779329432000,-400.0,0.000141,5]
[422728904,1779329432000,-932.303,0.00014056,2]
[422728902,1779329432000,-1354.0,0.00014056,2]
[422728825,1779329432000,-1374.92,0.00012996,2]
[422728875,1779329432000,-205.7,0.00013731,2]
[422728858,1779329432000,-2698.74,0.00013698,2]
[422728898,1779329432000,-625.0,0.00014056,2]
[422728861,1779329432000,-2698.74,0.00013698,2]
[422728831,1779329432000,-507.87749721,0.00013212,2]
[422728873,1779329432000,-200.0,0.00013699,2]
[422728816,1779329432000,-161.61,0.00012701,2]
[422728822,1779329432000,-22389.27,0.00012757,2]
[422728835,1779329432000,-348.61138709,0.00013212,2]
[422728838,1779329432000,-736.0,0.00013223,2]
[422728841,1779329432000,-1374.92,0.00013321,2]
[422728849,1779329432000,-160.0,0.00013436,2]
[422728819,1779329432000,-3352.3,0.00012757,2]
[422728845,1779329432000,-500.0,0.00013356,2]
[422728855,1779329432000,-1374.92,0.00013646,2]
[422728865,1779329432000,-2698.74,0.00013698,2]
[422728862,1779329432000,-2698.74,0.00013698,2]
[422728867,1779329432000,-2698.74,0.00013698,2]
[422728869,1779329432000,-2698.74,0.00013698,2]
[422728852,1779329432000,-160.55655277,0.0001364,2]
[422728871,1779329432000,-166.66,0.00013699,2]
[422728955,1779329433000,-778.11033601,0.00014249,2]
[422728957,1779329433000,-778.11033601,0.00014249,2]
[422728956,1779329433000,-778.11033601,0.00014249,2]
[422728954,1779329433000,-778.11033601,0.00014249,2]
[422728952,1779329433000,-778.11033601,0.00014249,2]
[422728953,1779329433000,-778.11033601,0.00014249,2]
[422728948,1779329433000,-304.266661,0.00014249,2]
[422728945,1779329433000,-500.0,0.00014249,2]
[422728949,1779329433000,-798.96,0.00014249,2]
[422728959,1779329433000,-778.11033601,0.00014249,2]
[422728913,1779329433000,-500.0,0.00014149,2]
[422728963,1779329433000,-778.11033601,0.00014249,2]
[422728958,1779329433000,-778.11033601,0.00014249,2]
[422728969,1779329433000,-778.11033601,0.00014249,2]
[422728962,1779329433000,-778.11033601,0.00014249,2]
[422728961,1779329433000,-778.11033601,0.00014249,2]
[422728964,1779329433000,-778.11033601,0.00014249,2]
[422728965,1779329433000,-778.11033601,0.00014249,2]
[422728968,1779329433000,-778.11033601,0.00014249,2]
[422728967,1779329433000,-778.11033601,0.00014249,2]
[422728974,1779329433000,-778.11033601,0.00014249,2]
[422728971,1779329433000,-778.11033601,0.00014249,2]
[422728972,1779329433000,-778.11033601,0.00014249,2]
[422728973,1779329433000,-778.11033601,0.00014249,2]
[422728966,1779329433000,-778.11033601,0.00014249,2]
[422728947,1779329433000,-500.0,0.00014249,2]
[422728960,1779329433000,-778.11033601,0.00014249,2]
[422728943,1779329433000,-500.0,0.00014249,2]
[422728928,1779329433000,-500.0,0.00014241,2]
[422728944,1779329433000,-500.0,0.00014249,2]
[422728911,1779329433000,-798.96,0.00014149,2]
[422728914,1779329433000,-131467.1949,0.0001415,2]
[422728917,1779329433000,-305.5524,0.0001415,2]
[422728909,1779329433000,-166.66,0.0001411,2]
[422728919,1779329433000,-2000.0,0.0001415,2]
[422728925,1779329433000,-600.0,0.000142,5]
[422728924,1779329433000,-692.98459831,0.0001417,2]
[422728922,1779329433000,-500.0,0.0001417,2]
[422728921,1779329433000,-1000.0,0.0001417,2]
[422728926,1779329433000,-2000.0,0.00014225,2]
[422728923,1779329433000,-1000.0,0.0001417,2]
[422728938,1779329433000,-500.0,0.00014249,2]
[422728937,1779329433000,-500.0,0.00014249,2]
[422728936,1779329433000,-500.0,0.00014249,2]
[422728929,1779329433000,-6646.1840845,0.00014242,2]
[422728970,1779329433000,-778.11033601,0.00014249,2]
[422728927,1779329433000,-798.96,0.00014241,2]
[422728932,1779329433000,-166.66,0.00014247,2]
[422728931,1779329433000,-151.0,0.00014242,2]
[422728934,1779329433000,-151.0,0.00014247,2]
[422728933,1779329433000,-1006.824,0.00014247,2]
[422728935,1779329433000,-500.0,0.00014249,2]
[422728940,1779329433000,-500.0,0.00014249,2]
[422728939,1779329433000,-500.0,0.00014249,2]
[422728941,1779329433000,-500.0,0.00014249,2]
[422728942,1779329433000,-500.0,0.00014249,2]
[422728950,1779329433000,-150.0,0.00014249,2]
[422728951,1779329433000,-778.11033601,0.00014249,2]
[422728975,1779329433000,-778.11033601,0.00014249,2]
[422728930,1779329433000,-105627.2745648,0.00014242,2]
[422728984,1779329433000,-778.11033601,0.00014249,2]
[422729008,1779329433000,-768.62118557,0.00014249,2]
[422729011,1779329433000,-768.62118557,0.00014249,2]
[422729009,1779329433000,-768.62118557,0.00014249,2]
[422729013,1779329433000,-768.62118557,0.00014249,2]
[422729023,1779329433000,-768.62118557,0.00014249,2]
[422729024,1779329433000,-768.62118557,0.00014249,2]
[422729025,1779329433000,-500.0,0.00014249,2]
[422729022,1779329433000,-768.62118557,0.00014249,2]
[422729014,1779329433000,-768.62118557,0.00014249,2]
[422729015,1779329433000,-768.62118557,0.00014249,2]
[422729016,1779329433000,-768.62118557,0.00014249,2]
[422729020,1779329433000,-768.62118557,0.00014249,2]
[422729018,1779329433000,-768.62118557,0.00014249,2]
[422729017,1779329433000,-768.62118557,0.00014249,2]
[422729019,1779329433000,-768.62118557,0.00014249,2]
[422729021,1779329433000,-768.62118557,0.00014249,2]
[422729026,1779329433000,-744.97130292,0.00014249,2]
[422729027,1779329433000,-744.97130292,0.00014249,2]
[422729030,1779329433000,-744.97130292,0.00014249,2]
[422729029,1779329433000,-744.97130292,0.00014249,2]
[422729034,1779329433000,-744.97130292,0.00014249,2]
[422729032,1779329433000,-744.97130292,0.00014249,2]
[422729028,1779329433000,-744.97130292,0.00014249,2]
[422729031,1779329433000,-744.97130292,0.00014249,2]
[422729033,1779329433000,-744.97130292,0.00014249,2]
[422729035,1779329433000,-744.97130292,0.00014249,2]
[422728983,1779329433000,-778.11033601,0.00014249,2]
[422729001,1779329433000,-768.62118557,0.00014249,2]
[422729004,1779329433000,-768.62118557,0.00014249,2]
[422728946,1779329433000,-500.0,0.00014249,2]
[422729012,1779329433000,-768.62118557,0.00014249,2]
[422729007,1779329433000,-768.62118557,0.00014249,2]
[422728976,1779329433000,-778.11033601,0.00014249,2]
[422728980,1779329433000,-778.11033601,0.00014249,2]
[422728979,1779329433000,-778.11033601,0.00014249,2]
[422728985,1779329433000,-778.11033601,0.00014249,2]
[422728982,1779329433000,-778.11033601,0.00014249,2]
[422728986,1779329433000,-778.11033601,0.00014249,2]
[422728987,1779329433000,-778.11033601,0.00014249,2]
[422728981,1779329433000,-778.11033601,0.00014249,2]
[422728978,1779329433000,-778.11033601,0.00014249,2]
[422728998,1779329433000,-768.62118557,0.00014249,2]
[422728989,1779329433000,-778.11033601,0.00014249,2]
[422728997,1779329433000,-778.11033601,0.00014249,2]
[422728988,1779329433000,-778.11033601,0.00014249,2]
[422728977,1779329433000,-778.11033601,0.00014249,2]
[422728990,1779329433000,-778.11033601,0.00014249,2]
[422729010,1779329433000,-768.62118557,0.00014249,2]
[422729000,1779329433000,-768.62118557,0.00014249,2]
[422729005,1779329433000,-768.62118557,0.00014249,2]
[422729003,1779329433000,-768.62118557,0.00014249,2]
[422728999,1779329433000,-768.62118557,0.00014249,2]
[422729006,1779329433000,-768.62118557,0.00014249,2]
[422729002,1779329433000,-768.62118557,0.00014249,2]
[422728995,1779329433000,-778.11033601,0.00014249,2]
[422728996,1779329433000,-778.11033601,0.00014249,2]
[422728992,1779329433000,-778.11033601,0.00014249,2]
[422728993,1779329433000,-778.11033601,0.00014249,2]
[422728991,1779329433000,-778.11033601,0.00014249,2]
[422728994,1779329433000,-778.11033601,0.00014249,2]
[422729070,1779329434000,-151.0,0.000147,2]
[422729072,1779329434000,-1204.58489325,0.00014702,2]
[422729069,1779329434000,-200.0,0.000147,5]
[422729071,1779329434000,-1494.15510675,0.00014702,2]
[422729064,1779329434000,-475.41186754,0.00014651,2]
[422729066,1779329434000,-500.0,0.0001467,2]
[422729074,1779329434000,-200.0,0.00014781,2]
[422729063,1779329434000,-151.0,0.0001462,2]
[422729075,1779329434000,-200.0,0.000148,5]
[422729073,1779329434000,-700.0,0.00014726,2]
[422729068,1779329434000,-816.35042144,0.000147,2]
[422729077,1779329434000,-200.0,0.00014829,2]
[422729079,1779329434000,-333.33333,0.0001485,2]
[422729078,1779329434000,-333.33333,0.0001485,2]
[422729080,1779329434000,-333.33333,0.0001485,2]
[422729084,1779329434000,-484.0,0.000149,5]
[422729083,1779329434000,-608.05525083,0.000149,3]
[422729081,1779329434000,-500.0,0.0001487,2]
[422729082,1779329434000,-1000.0,0.0001487,2]
[422729086,1779329434000,-348.61138709,0.000149,2]
[422729085,1779329434000,-5000.0,0.000149,2]
[422729088,1779329434000,-151.0,0.00014923,2]
[422729090,1779329434000,-2698.74,0.00014925,2]
[422729087,1779329434000,-507.87749721,0.000149,2]
[422729067,1779329434000,-200.0,0.00014682,2]
[422729076,1779329434000,-633.0,0.00014801,5]
[422729065,1779329434000,-1000.0,0.0001467,2]
[422729048,1779329434000,-800.0,0.000143,5]
[422729051,1779329434000,-1000.0,0.0001437,2]
[422729037,1779329434000,-744.97130292,0.00014249,2]
[422729036,1779329434000,-744.97130292,0.00014249,2]
[422729039,1779329434000,-2698.74,0.00014249,2]
[422729040,1779329434000,-2698.74,0.00014249,2]
[422729038,1779329434000,-744.97130292,0.00014249,2]
[422729041,1779329434000,-162297.3758997,0.0001425,2]
[422729043,1779329434000,-200.0,0.0001425,2]
[422729047,1779329434000,-1374.92,0.00014295,2]
[422729042,1779329434000,-88440.83826554,0.0001425,2]
[422729045,1779329434000,-156.624335,0.0001425,2]
[422729046,1779329434000,-350.0,0.00014256,2]
[422729044,1779329434000,-152.72799,0.0001425,2]
[422729089,1779329434000,-150.0,0.00014925,2]
[422729050,1779329434000,-348.61138709,0.00014337,2]
[422729059,1779329434000,-521.0,0.00014542,2]
[422729054,1779329434000,-200.0,0.00014392,2]
[422729052,1779329434000,-500.0,0.0001437,2]
[422729049,1779329434000,-507.87749721,0.00014337,2]
[422729061,1779329434000,-350.0,0.00014547,3]
[422729060,1779329434000,-1252.0,0.00014545,2]
[422729058,1779329434000,-200.0,0.00014536,2]
[422729055,1779329434000,-1000.0,0.000144,5]
[422729062,1779329434000,-200.0,0.000146,5]
[422729053,1779329434000,-166.66,0.00014384,2]
[422729056,1779329434000,-352.91722476,0.00014422,2]
[422729057,1779329434000,-200.0,0.000145,5]
[422729091,1779329434000,-161.0,0.00014959,2]
[422729111,1779329434000,-1349.28756851,0.00014998,5]
[422729095,1779329434000,-500.0,0.0001497,2]
[422729094,1779329434000,-1000.0,0.0001497,2]
[422729120,1779329434000,-798.96,0.00014999,2]
[422729128,1779329434000,-798.96,0.00014999,2]
[422729126,1779329434000,-798.96,0.00014999,2]
[422729130,1779329434000,-798.96,0.00014999,2]
[422729138,1779329434000,-798.98193604,0.00014999,2]
[422729137,1779329434000,-798.96,0.00014999,2]
[422729127,1779329434000,-798.96,0.00014999,2]
[422729129,1779329434000,-798.96,0.00014999,2]
[422729132,1779329434000,-798.96,0.00014999,2]
[422729134,1779329434000,-798.96,0.00014999,2]
[422729131,1779329434000,-798.96,0.00014999,2]
[422729133,1779329434000,-798.96,0.00014999,2]
[422729136,1779329434000,-798.96,0.00014999,2]
[422729135,1779329434000,-798.96,0.00014999,2]
[422729140,1779329434000,-500.0,0.00014999,2]
[422729141,1779329434000,-500.0,0.00014999,2]
[422729142,1779329434000,-500.0,0.00014999,2]
[422729139,1779329434000,-500.0,0.00014999,2]
[422729143,1779329434000,-500.0,0.00014999,2]
[422729145,1779329434000,-500.0,0.00014999,2]
[422729147,1779329434000,-500.0,0.00014999,2]
[422729146,1779329434000,-500.0,0.00014999,2]